fUSD/lending_fUSD_20250809
["ID","MTS","AMOUNT","RATE_DAILY","PERIOD"]
[378121197,1754739059582,-400.0,0.00024657,2]
[378121198,1754739059591,-400.0,0.00024657,2]
[378121199,1754739059600,-400.0,0.00024657,2]
[378121200,1754739059610,-400.0,0.00024657,2]
[378121201,1754739059619,-691.95,0.00024657,2]
[378121202,1754739059629,-400.0,0.00024657,2]
[378121203,1754739059638,-617.97,0.00024657,2]
[378121204,1754739059648,-400.0,0.00024657,2]
[378121205,1754739059657,-400.0,0.00024657,2]
[378121206,1754739059667,-400.0,0.00024657,2]
[378121207,1754739059676,-626.4,0.00024657,2]
[378121208,1754739059685,-275.1115874,0.00024657,2]
[378121209,1754739059694,-400.0,0.00024657,2]
[378121210,1754739059703,-400.0,0.00024657,2]
[378121211,1754739059713,-400.0,0.00024657,2]
[378121212,1754739059722,-400.0,0.00024657,2]
[378121213,1754739059731,-400.0,0.00024657,2]
[378121214,1754739059740,-525.8,0.00024657,2]
[378121215,1754739059750,-528.12,0.00024657,2]
[378121216,1754739059759,-400.0,0.00024657,2]
[378121217,1754739059768,-400.0,0.00024657,2]
[378121218,1754739059777,-1644.84,0.00024657,2]
[378121219,1754739059787,-400.0,0.00024657,2]
[378121220,1754739059796,-674.38,0.00024657,2]
[378121221,1754739059807,-151.0,0.00024657,7]
[378121222,1754739059817,-863.97,0.00024657,2]
[378121223,1754739059826,-151.0,0.00024657,7]
[378121224,1754739059837,-151.0,0.00024657,7]
[378121225,1754739059846,-400.0,0.00024657,2]
[378121226,1754739059855,-400.0,0.00024657,2]
[378121227,1754739059865,-503.45,0.00024657,2]
[378121228,1754739059875,-400.0,0.00024657,2]
[378121229,1754739059884,-1178.516227,0.00024657,2]
[378121230,1754739059893,-3227.85,0.00024657,2]
[378121231,1754739059902,-400.0,0.00024657,2]
[378121232,1754739059912,-400.0,0.00024657,2]
[378121233,1754739059921,-400.0,0.00024657,2]
[378121234,1754739059931,-400.0,0.00024657,2]
[378121235,1754739059941,-400.0,0.00024657,2]
[378121236,1754739059951,-721.38,0.00024657,2]
[378121237,1754739059960,-400.0,0.00024657,2]
[378121238,1754739059971,-400.0,0.00024657,2]
[378121239,1754739059980,-400.0,0.00024657,2]
[378121240,1754739059990,-400.0,0.00024657,2]
[378121241,1754739059999,-497.52,0.00024657,2]
[378121242,1754739060009,-400.0,0.00024657,2]
[378121243,1754739060019,-400.0,0.00024657,2]
[378121244,1754739060028,-400.0,0.00024657,2]
[378121245,1754739060039,-458.1,0.00024657,2]
[378121246,1754739060051,-400.0,0.00024657,2]
[378121247,1754739060061,-400.0,0.00024657,2]
[378121248,1754739060072,-956.09,0.00024657,2]
[378121249,1754739060082,-400.0,0.00024657,2]
[378121250,1754739060091,-538.1059114,0.00024657,2]
[378121251,1754739060101,-818.35,0.00024657,2]
[378121252,1754739060111,-440.72,0.00024657,2]
[378121253,1754739060120,-846.32,0.00024657,2]
[378121254,1754739060129,-400.0,0.00024657,2]
[378121255,1754739060139,-601.65,0.00024657,2]
[378121256,1754739060147,-908.36,0.00024657,2]
[378121257,1754739060157,-400.0,0.00024657,2]
[378121258,1754739060166,-400.0,0.00024657,2]
[378121259,1754739060175,-400.0,0.00024657,2]
[378121260,1754739060184,-400.0,0.00024657,2]
[378121261,1754739060193,-421.86742473,0.00024657,2]
[378121262,1754739060202,-2869.94,0.00024657,2]
[378121263,1754739060212,-932.28,0.00024657,2]
[378121264,1754739060222,-400.0,0.00024657,2]
[378121265,1754739060231,-400.0,0.00024657,2]
[378121266,1754739060240,-400.0,0.00024657,2]
[378121267,1754739060250,-400.0,0.00024657,2]
[378121268,1754739060259,-527.73,0.00024657,2]
[378121269,1754739060268,-400.0,0.00024657,2]
[378121270,1754739060278,-693.47,0.00024657,2]
[378121271,1754739060287,-798.53,0.00024657,2]
[378121272,1754739060297,-952.985602,0.00024657,7]
[378121273,1754739060307,-400.0,0.00024657,2]
[378121274,1754739060316,-952.985602,0.00024657,7]
[378121275,1754739060325,-594.67,0.00024657,2]
[378121276,1754739060335,-952.985602,0.00024657,7]
[378121277,1754739060344,-402.22712379,0.00024657,2]
[378121278,1754739060353,-670.7,0.00024657,2]
[378121279,1754739060363,-400.0,0.00024657,2]
[378121280,1754739060372,-400.0,0.00024657,2]
[378121281,1754739060382,-400.0,0.00024657,2]
[378121282,1754739060391,-400.0,0.00024657,2]
[378121283,1754739060401,-400.0,0.00024657,2]
[378121284,1754739060410,-952.985602,0.00024657,7]
[378121285,1754739060419,-952.985602,0.00024657,7]
[378121286,1754739060428,-952.985602,0.00024657,7]
[378121287,1754739060438,-892.34,0.00024657,2]
[378121288,1754739060447,-400.0,0.00024657,2]
[378121289,1754739060457,-400.0,0.00024657,2]
[378121290,1754739060467,-400.0,0.00024657,2]
[378121291,1754739060476,-400.0,0.00024657,2]
[378121292,1754739060485,-400.0,0.00024657,2]
[378121293,1754739060495,-904.42,0.00024657,2]
[378121294,1754739060504,-570.25,0.00024657,2]
[378121295,1754739060514,-400.0,0.00024657,2]
[378121296,1754739060523,-400.0,0.00024657,2]
[378121297,1754739060533,-824.31,0.00024657,2]
[378121298,1754739060542,-400.0,0.00024657,2]
[378121299,1754739060551,-617.45,0.00024657,2]
[378121300,1754739060560,-404.8,0.00024657,2]
[378121301,1754739060570,-400.0,0.00024657,2]
[378121302,1754739060579,-400.0,0.00024657,2]
[378121303,1754739060588,-802.11,0.00024657,2]
[378121304,1754739060598,-400.0,0.00024657,2]
[378121305,1754739060607,-400.0,0.00024657,2]
[378121306,1754739060616,-400.88468844,0.00024657,2]
[378121307,1754739060626,-503.92,0.00024657,2]
[378121308,1754739060636,-1140.45,0.00024657,2]
[378121309,1754739060646,-1431.79,0.00024657,2]
[378121310,1754739060655,-400.0,0.00024657,2]
[378121311,1754739060664,-400.0,0.00024657,2]
[378121312,1754739060674,-450.79,0.00024657,2]
[378121313,1754739060684,-400.0,0.00024657,2]
[378121314,1754739060693,-798.89,0.00024657,2]
[378121315,1754739060704,-400.0,0.00024657,2]
[378121316,1754739060713,-438.01849629,0.00024657,2]
[378121317,1754739060722,-400.0,0.00024657,2]
[378121318,1754739060732,-400.0,0.00024657,2]
[378121319,1754739060742,-939.53,0.00024657,2]
[378121320,1754739060750,-400.0,0.00024657,2]
[378121321,1754739060760,-853.78,0.00024657,2]
[378121322,1754739060769,-486.97496245,0.00024657,2]
[378121323,1754739060779,-1033.62,0.00024657,2]
[378121324,1754739060789,-1000.0,0.00024657,7]
[378121325,1754739060798,-400.0,0.00024657,2]
[378121326,1754739060808,-400.0,0.00024657,2]
[378121327,1754739060817,-400.0,0.00024657,2]
[378121328,1754739060827,-816.42,0.00024657,2]
[378121329,1754739060837,-151.0,0.00024657,7]
[378121330,1754739060846,-151.0,0.00024657,7]
[378121331,1754739060856,-400.0,0.00024657,2]
[378121332,1754739060866,-151.0,0.00024657,7]
[378121333,1754739060876,-400.0,0.00024657,2]
[378121334,1754739060886,-535.84,0.00024657,2]
[378121335,1754739060896,-400.0,0.00024657,2]
[378121336,1754739060905,-400.0,0.00024657,2]
[378121337,1754739060915,-1185.36,0.00024657,2]
[378121338,1754739060924,-400.0,0.00024657,2]
[378121339,1754739060933,-616.28,0.00024657,2]
[378121340,1754739060946,-151.0,0.00024657,7]
[378121341,1754739060955,-400.0,0.00024657,2]
[378121342,1754739060965,-151.0,0.00024657,7]
[378121343,1754739060974,-1172.65,0.00024657,2]
[378121344,1754739060984,-400.0,0.00024657,2]
[378121345,1754739060993,-151.0,0.00024657,7]
[378121346,1754739061003,-400.0,0.00024657,2]
[378121347,1754739061012,-400.0,0.00024657,2]
[378121348,1754739061022,-876.19,0.00024657,2]
[378121349,1754739061032,-400.0,0.00024657,2]
[378121350,1754739061041,-400.0,0.00024657,2]
[378121351,1754739061051,-600.86,0.00024657,2]
[378121352,1754739061060,-400.0,0.00024657,2]
[378121353,1754739061070,-677.48,0.00024657,2]
[378121354,1754739061079,-400.0,0.00024657,2]
[378121355,1754739061089,-400.0,0.00024657,2]
[378121356,1754739061098,-484.89,0.00024657,2]
[378121357,1754739061108,-1914.58,0.00024657,2]
[378121358,1754739061118,-400.0,0.00024657,2]
[378121359,1754739061127,-400.0,0.00024657,2]
[378121360,1754739061137,-968.27,0.00024657,2]
[378121361,1754739061146,-562.09,0.00024657,2]
[378121362,1754739061155,-400.0,0.00024657,2]
[378121363,1754739061164,-639.35,0.00024657,2]
[378121364,1754739061173,-400.0,0.00024657,2]
[378121365,1754739061183,-400.0,0.00024657,2]
[378121366,1754739061193,-400.0,0.00024657,2]
[378121367,1754739061202,-400.0,0.00024657,2]
[378121368,1754739061211,-400.0,0.00024657,2]
[378121369,1754739061220,-581.48,0.00024657,2]
[378121370,1754739061230,-500.0,0.00024657,2]
[378121371,1754739061238,-500.0,0.00024657,2]
[378121372,1754739061248,-400.0,0.00024657,2]
[378121373,1754739061257,-500.0,0.00024657,2]
[378121374,1754739061267,-1089.02,0.00024657,2]
[378121375,1754739061276,-400.0,0.00024657,2]
[378121376,1754739061285,-500.0,0.00024657,2]
[378121377,1754739061294,-400.0,0.00024657,2]
[378121378,1754739061304,-408.56506732,0.00024657,2]
[378121379,1754739061313,-652.46,0.00024657,2]
[378121380,1754739061323,-500.0,0.00024657,2]
[378121381,1754739061332,-400.0,0.00024657,2]
[378121382,1754739061341,-400.0,0.00024657,2]
[378121383,1754739061351,-1117.59,0.00024657,2]
[378121384,1754739061360,-572.31,0.00024657,2]
[378121385,1754739061370,-400.0,0.00024657,2]
[378121386,1754739061380,-400.0,0.00024657,2]
[378121387,1754739061389,-400.0,0.00024657,2]
[378121388,1754739061398,-400.0,0.00024657,2]
[378121389,1754739061408,-400.0,0.00024657,2]
[378121390,1754739061417,-1148.91,0.00024657,2]
[378121391,1754739061426,-471.08,0.00024657,2]
[378121392,1754739061435,-516.33,0.00024657,2]
[378121393,1754739061445,-400.0,0.00024657,2]
[378121394,1754739061454,-400.0,0.00024657,2]
[378121395,1754739061464,-400.0,0.00024657,2]
[378121396,1754739061473,-400.0,0.00024657,2]
[378121397,1754739061482,-400.0,0.00024657,2]
[378121398,1754739061492,-697.94,0.00024657,2]
[378121399,1754739061501,-400.0,0.00024657,2]
[378121400,1754739061511,-454.77,0.00024657,2]
[378121401,1754739061521,-1007.07,0.00024657,2]
[378121402,1754739061530,-400.0,0.00024657,2]
[378121403,1754739061539,-519.35,0.00024657,2]
[378121404,1754739061549,-400.0,0.00024657,2]
[378121405,1754739061558,-1241.46,0.00024657,2]
[378121406,1754739061569,-400.0,0.00024657,2]
[378121407,1754739061578,-400.0,0.00024657,2]
[378121408,1754739061587,-400.0,0.00024657,2]
[378121409,1754739061597,-948.49,0.00024657,2]
[378121410,1754739061607,-482.0,0.00024657,2]
[378121411,1754739061616,-400.0,0.00024657,2]
[378121412,1754739061626,-549.19,0.00024657,2]
[378121413,1754739061635,-400.0,0.00024657,2]
[378121414,1754739061645,-400.0,0.00024657,2]
[378121415,1754739061655,-400.0,0.00024657,2]
[378121416,1754739061665,-1049.29,0.00024657,2]
[378121417,1754739061675,-400.0,0.00024657,2]
[378121418,1754739061684,-400.0,0.00024657,2]
[378121419,1754739061693,-400.0,0.00024657,2]
[378121420,1754739061702,-400.0,0.00024657,2]
[378121421,1754739061712,-400.0,0.00024657,2]
[378121422,1754739061721,-415.86,0.00024657,2]
[378121423,1754739061730,-400.0,0.00024657,2]
[378121424,1754739061739,-400.0,0.00024657,2]
[378121425,1754739061749,-403.51582528,0.00024657,2]
[378121426,1754739061759,-400.0,0.00024657,2]
[378121427,1754739061769,-1206.3,0.00024657,2]
[378121428,1754739061778,-400.0,0.00024657,2]
[378121429,1754739061787,-400.0,0.00024657,2]
[378121430,1754739061797,-661.3,0.00024657,2]
[378121431,1754739061807,-624.9,0.00024657,2]
[378121432,1754739061816,-566.03,0.00024657,2]
[378121433,1754739061825,-840.86,0.00024657,2]
[378121434,1754739061835,-500.0,0.00024657,2]
[378121435,1754739061844,-756.03,0.00024657,2]
[378121436,1754739061854,-500.0,0.00024657,2]
[378121437,1754739061863,-400.0,0.00024657,2]
[378121438,1754739061873,-500.0,0.00024657,2]
[378121439,1754739061882,-400.0,0.00024657,2]
[378121440,1754739061892,-400.0,0.00024657,2]
[378121441,1754739061901,-400.0,0.00024657,2]
[378121442,1754739061910,-400.0,0.00024657,2]
[378121443,1754739061920,-400.0,0.00024657,2]
[378121444,1754739061930,-400.0,0.00024657,2]
[378121445,1754739061941,-561.19,0.00024657,2]
[378121446,1754739061951,-227.93215427,0.00024657,2]
[378121447,1754739061961,-400.0,0.00024657,2]
[378121448,1754739061971,-400.0,0.00024657,2]
[378121449,1754739061981,-400.8057507,0.00024657,2]
[378121450,1754739061991,-503.08,0.00024657,2]
[378121451,1754739062000,-3308.44,0.00024657,2]
[378121452,1754739062010,-400.0,0.00024657,2]
[378121453,1754739062021,-400.0,0.00024657,2]
[378121454,1754739062031,-400.0,0.00024657,2]
[378121455,1754739062040,-400.0,0.00024657,2]
[378121456,1754739062050,-400.0,0.00024657,2]
[378121457,1754739062059,-400.0,0.00024657,2]
[378121458,1754739062069,-691.84,0.00024657,2]
[378121459,1754739062078,-771.46,0.00024657,2]
[378121460,1754739062087,-1262.15,0.00024657,2]
[378121461,1754739062097,-400.0,0.00024657,2]
[378121462,1754739062107,-400.0,0.00024657,2]
[378121463,1754739062117,-400.0,0.00024657,2]
[378121464,1754739062127,-400.0,0.00024657,2]
[378121465,1754739062136,-1236.494303,0.00024657,7]
[378121466,1754739062145,-400.0,0.00024657,2]
[378121467,1754739062154,-1236.494303,0.00024657,7]
[378121468,1754739062163,-400.0,0.00024657,2]
[378121469,1754739062173,-1236.494303,0.00024657,7]
[378121470,1754739062183,-400.0,0.00024657,2]
[378121471,1754739062192,-400.0,0.00024657,2]
[378121472,1754739062202,-400.0,0.00024657,2]
[378121473,1754739062212,-400.0,0.00024657,2]
[378121474,1754739062222,-580.59,0.00024657,2]
[378121475,1754739062231,-1236.494303,0.00024657,7]
[378121476,1754739062241,-761.23,0.00024657,2]
[378121477,1754739062250,-1236.494303,0.00024657,7]
[378121478,1754739062259,-1236.494303,0.00024657,7]
[378121479,1754739062269,-539.60596617,0.00024657,2]
[378121480,1754739062278,-400.0,0.00024657,2]
[378121481,1754739062287,-400.0,0.00024657,2]
[378121482,1754739062297,-821.84,0.00024657,2]
[378121483,1754739062306,-400.0,0.00024657,2]
[378121484,1754739062316,-500.0,0.00024657,2]
[378121485,1754739062326,-400.0,0.00024657,2]
[378121486,1754739062335,-500.0,0.00024657,2]
[378121487,1754739062346,-500.0,0.00024657,2]
[378121488,1754739062357,-400.0,0.00024657,2]
[378121489,1754739062367,-500.0,0.00024657,2]
[378121490,1754739062560,-500.0,0.00024657,2]
[378121491,1754739062571,-1803.66,0.00024657,2]
[378121492,1754739062580,-400.0,0.00024657,2]
[378121493,1754739062590,-400.0,0.00024657,2]
[378121494,1754739062600,-400.0,0.00024657,2]
[378121495,1754739062609,-515.54,0.00024657,2]
[378121496,1754739062620,-1029.63,0.00024657,2]
[378121497,1754739062631,-400.0,0.00024657,2]
[378121498,1754739062642,-400.0,0.00024657,2]
[378121499,1754739062653,-279.892574,0.00024657,7]
[378121500,1754739062663,-400.0,0.00024657,2]
[378121501,1754739062672,-400.0,0.00024657,2]
[378121502,1754739062683,-400.0,0.00024657,2]
[378121503,1754739062701,-400.0,0.00024657,2]
[378121504,1754739062713,-400.0,0.00024657,2]
[378121505,1754739062722,-400.0,0.00024657,2]
[378121506,1754739062732,-400.0,0.00024657,2]
[378121507,1754739062742,-400.0,0.00024657,2]
[378121508,1754739062752,-1318.37,0.00024657,2]
[378121509,1754739062762,-400.0,0.00024657,2]
[378121510,1754739062771,-400.0,0.00024657,2]
[378121511,1754739062787,-400.0,0.00024657,2]
[378121512,1754739062796,-1122.9,0.00024657,2]
[378121513,1754739062806,-400.0,0.00024657,2]
[378121514,1754739062816,-400.0,0.00024657,2]
[378121515,1754739062826,-400.0,0.00024657,2]
[378121516,1754739062836,-400.0,0.00024657,2]
[378121517,1754739062846,-547.9,0.00024657,2]
[378121518,1754739062856,-400.0,0.00024657,2]
[378121519,1754739062865,-400.0,0.00024657,2]
[378121520,1754739062875,-734.33,0.00024657,2]
[378121521,1754739062885,-566.63,0.00024657,2]
[378121522,1754739062895,-944.11,0.00024657,2]
[378121523,1754739062905,-400.0,0.00024657,2]
[378121524,1754739062915,-400.0,0.00024657,2]
[378121525,1754739062924,-400.0,0.00024657,2]
[378121526,1754739062934,-400.0,0.00024657,2]
[378121527,1754739062948,-400.0,0.00024657,2]
[378121528,1754739062957,-400.0,0.00024657,2]
[378121529,1754739062967,-400.0,0.00024657,2]
[378121530,1754739062977,-3203.21,0.00024657,4]
[378121531,1754739062988,-400.0,0.00024657,2]
[378121532,1754739062997,-400.0,0.00024657,2]
[378121533,1754739063007,-400.0,0.00024657,2]
[378121534,1754739063016,-400.0,0.00024657,2]
[378121535,1754739063027,-400.0,0.00024657,2]
[378121536,1754739063037,-400.0,0.00024657,2]
[378121537,1754739063048,-807.3,0.00024657,2]
[378121538,1754739063057,-400.0,0.00024657,2]
[378121539,1754739063067,-400.0,0.00024657,2]
[378121540,1754739063077,-1190.09,0.00024657,2]
[378121541,1754739063087,-400.0,0.00024657,2]
[378121542,1754739063097,-500.0,0.00024657,2]
[378121543,1754739063107,-500.0,0.00024657,2]
[378121544,1754739063117,-500.0,0.00024657,2]
[378121545,1754739063127,-500.0,0.00024657,2]
[378121546,1754739063137,-400.0,0.00024657,2]
[378121547,1754739063148,-400.0,0.00024657,2]
[378121548,1754739063158,-500.0,0.00024657,2]
[378121549,1754739063167,-400.0,0.00024657,2]
[378121550,1754739063176,-516.76,0.00024657,2]
[378121551,1754739063186,-1207.89,0.00024657,2]
[378121552,1754739063196,-400.0,0.00024657,2]
[378121553,1754739063206,-400.0,0.00024657,2]
[378121554,1754739063216,-400.0,0.00024657,2]
[378121555,1754739063226,-420.81,0.00024657,2]
[378121556,1754739063236,-400.0,0.00024657,2]
[378121557,1754739063245,-400.0,0.00024657,2]
[378121558,1754739063254,-617.23,0.00024657,2]
[378121559,1754739063263,-1303.27,0.00024657,2]
[378121560,1754739063273,-400.0,0.00024657,2]
[378121561,1754739063283,-400.0,0.00024657,2]
[378121562,1754739063292,-400.0,0.00024657,2]
[378121563,1754739063302,-400.0,0.00024657,2]
[378121564,1754739063311,-400.0,0.00024657,2]
[378121565,1754739063323,-400.0,0.00024657,2]
[378121566,1754739063333,-400.0,0.00024657,2]
[378121567,1754739063343,-400.0,0.00024657,2]
[378121568,1754739063352,-400.0,0.00024657,2]
[378121569,1754739063362,-1069.66,0.00024657,2]
[378121570,1754739063371,-400.0,0.00024657,2]
[378121571,1754739063380,-1540.56,0.00024657,2]
[378121572,1754739063390,-400.0,0.00024657,2]
[378121573,1754739063400,-400.0,0.00024657,2]
[378121574,1754739063409,-400.0,0.00024657,2]
[378121575,1754739063419,-400.0,0.00024657,2]
[378121576,1754739063428,-860.61,0.00024657,2]
[378121577,1754739063438,-400.0,0.00024657,2]
[378121578,1754739063448,-579.42,0.00024657,2]
[378121579,1754739063459,-1413.97,0.00024657,2]
[378121580,1754739063468,-400.0,0.00024657,2]
[378121581,1754739063478,-400.0,0.00024657,2]
[378121582,1754739063487,-400.0,0.00024657,2]
[378121583,1754739063497,-400.0,0.00024657,2]
[378121584,1754739063506,-400.0,0.00024657,2]
[378121585,1754739063516,-400.0,0.00024657,2]
[378121586,1754739063526,-400.0,0.00024657,2]
[378121587,1754739063535,-151.0,0.00024657,7]
[378121588,1754739063546,-400.0,0.00024657,2]
[378121589,1754739063556,-400.0,0.00024657,2]
[378121590,1754739063565,-400.0,0.00024657,2]
[378121591,1754739063575,-151.0,0.00024657,7]
[378121592,1754739063585,-400.0,0.00024657,2]
[378121593,1754739063595,-400.0,0.00024657,2]
[378121594,1754739063605,-400.0,0.00024657,2]
[378121595,1754739063615,-658.59,0.00024657,2]
[378121596,1754739063626,-765.61,0.00024657,2]
[378121597,1754739063636,-400.0,0.00024657,2]
[378121598,1754739063646,-531.55,0.00024657,2]
[378121599,1754739063656,-400.0,0.00024657,2]
[378121600,1754739063666,-400.0,0.00024657,2]
[378121601,1754739063675,-400.0,0.00024657,2]
[378121602,1754739063685,-400.0,0.00024657,2]
[378121603,1754739063695,-400.8682913,0.00024657,2]
[378121604,1754739063704,-400.0,0.00024657,2]
[378121605,1754739063714,-812.74,0.00024657,2]
[378121606,1754739063725,-400.0,0.00024657,2]
[378121607,1754739063735,-500.0,0.00024657,2]
[378121608,1754739063745,-500.0,0.00024657,2]
[378121609,1754739063755,-500.0,0.00024657,2]
[378121610,1754739063765,-400.0,0.00024657,2]
[378121611,1754739063775,-500.0,0.00024657,2]
[378121612,1754739063784,-400.0,0.00024657,2]
[378121613,1754739063794,-400.0,0.00024657,2]
[378121614,1754739063803,-400.0,0.00024657,2]
[378121615,1754739063813,-151.0,0.00024657,7]
[378121616,1754739063823,-400.0,0.00024657,2]
[378121617,1754739063833,-1000.0,0.00024657,2]
[378121618,1754739063842,-400.0,0.00024657,2]
[378121619,1754739063852,-400.0,0.00024657,2]
[378121620,1754739063861,-400.0,0.00024657,2]
[378121621,1754739063871,-400.0,0.00024657,2]
[378121622,1754739063880,-758.15,0.00024657,2]
[378121623,1754739063890,-648.1,0.00024657,2]
[378121624,1754739063900,-500.0,0.00024657,2]
[378121625,1754739063909,-400.0,0.00024657,2]
[378121626,1754739063919,-500.0,0.00024657,2]
[378121627,1754739063928,-500.0,0.00024657,2]
[378121628,1754739063938,-714.88,0.00024657,2]
[378121629,1754739063950,-400.0,0.00024657,2]
[378121630,1754739063963,-400.0,0.00024657,2]
[378121631,1754739063973,-500.0,0.00024657,2]
[378121632,1754739063983,-280.69,0.00024657,2]
[378121633,1754739063993,-736.24,0.00024657,2]
[378121634,1754739064003,-400.0,0.00024657,2]
[378121635,1754739064012,-400.0,0.00024657,2]
[378121636,1754739064023,-500.0,0.00024657,2]
[378121637,1754739064034,-500.0,0.00024657,2]
[378121638,1754739064043,-400.0,0.00024657,2]
[378121639,1754739064053,-400.0,0.00024657,2]
[378121640,1754739064062,-500.0,0.00024657,2]
[378121641,1754739064072,-400.0,0.00024657,2]
[378121642,1754739064082,-651.97,0.00024657,2]
[378121643,1754739064091,-500.0,0.00024657,2]
[378121644,1754739064101,-400.66561651,0.00024657,2]
[378121645,1754739064111,-500.0,0.00024657,2]
[378121646,1754739064120,-400.0,0.00024657,2]
[378121647,1754739064130,-400.0,0.00024657,2]
[378121648,1754739064140,-500.0,0.00024657,2]
[378121649,1754739064151,-500.0,0.00024657,2]
[378121650,1754739064163,-500.0,0.00024657,2]
[378121651,1754739064174,-500.0,0.00024657,2]
[378121652,1754739064184,-597.51,0.00024657,2]
[378121653,1754739064194,-500.0,0.00024657,2]
[378121654,1754739064204,-400.0,0.00024657,2]
[378121655,1754739064214,-400.0,0.00024657,2]
[378121656,1754739064223,-500.0,0.00024657,2]
[378121657,1754739064234,-172.5,0.00024657,2]
[378121658,1754739064244,-400.0,0.00024657,2]
[378121659,1754739064254,-400.0,0.00024657,2]
[378121660,1754739064263,-400.0,0.00024657,2]
[378121661,1754739064273,-1059.33,0.00024657,2]
[378121662,1754739064283,-400.0,0.00024657,2]
[378121663,1754739064293,-4328.0,0.00024657,2]
[378121664,1754739064303,-400.0,0.00024657,2]
[378121665,1754739064312,-400.0,0.00024657,2]
[378121666,1754739064322,-400.0,0.00024657,2]
[378121667,1754739064332,-400.0,0.00024657,2]
[378121668,1754739064342,-400.0,0.00024657,2]
[378121669,1754739064351,-400.0,0.00024657,2]
[378121670,1754739064361,-400.0,0.00024657,2]
[378121671,1754739064371,-539.16,0.00024657,2]
[378121672,1754739064381,-460.05,0.00024657,2]
[378121673,1754739064391,-400.0,0.00024657,2]
[378121674,1754739064402,-400.0,0.00024657,2]
[378121675,1754739064412,-402.03050515,0.00024657,2]
[378121676,1754739064422,-151.0,0.00024657,7]
[378121677,1754739064432,-151.940042,0.00024657,7]
[378121678,1754739064441,-401.14723987,0.00024657,2]
[378121679,1754739064451,-400.0,0.00024657,2]
[378121680,1754739064461,-400.0,0.00024657,2]
[378121681,1754739064471,-654.65,0.00024657,2]
[378121682,1754739064485,-474.07,0.00024657,2]
[378121683,1754739064495,-875.87,0.00024657,2]
[378121684,1754739064505,-1135.86,0.00024657,2]
[378121685,1754739064515,-400.0,0.00024657,2]
[378121686,1754739064527,-400.0,0.00024657,2]
[378121687,1754739064537,-400.0,0.00024657,2]
[378121688,1754739064546,-2528.89,0.00024657,2]
[378121689,1754739064556,-400.0,0.00024657,2]
[378121690,1754739064565,-500.0,0.00024657,2]
[378121691,1754739064575,-400.0,0.00024657,2]
[378121692,1754739064585,-400.0,0.00024657,2]
[378121693,1754739064595,-400.0,0.00024657,2]
[378121694,1754739064604,-400.0,0.00024657,2]
[378121695,1754739064614,-400.0,0.00024657,2]
[378121696,1754739064624,-1086.0,0.00024658,2]